[Event "10th Floripa Open 2024"]
[Site "Florianopolis"]
[Date "2024.01.24"]
[Round "5.6"]
[White "Roselli Mailhe, Bernardo"]
[Black "Filgueiras, Nathan Felipe"]
[Result "1/2-1/2"]
[ECO "E57"]
[WhiteElo "2364"]
[BlackElo "2321"]
[Annotator "RC"]
[PlyCount "150"]
[EventDate "2024.01.10"]
[EventType "swiss"]
[EventCountry "BRA"]
[SourceTitle "playchess.com"]
[Source "ChessBase"]
[SourceQuality "1"]
[TimeControl "5400+30"]

1. d4 {[%emt 0:00:03]} d5 {[%emt 0:08:17]} 2. c4 {[%emt 0:00:04]} e6 {[%emt 0:00:04]} 3. Nc3 {[%emt 0:00:04]} Nf6 {[%emt 0:00:19]} 4. Bg5 {[%emt 0:00:05]} dxc4 {[%emt 0:01:42]} 5. e3 {[%emt 0:06:57]} c5 {[%emt 0:00:54]} 6. Bxc4 {[%emt 0:00:14]} cxd4 {[%emt 0:00:10]} 7. exd4 {[%emt 0:00:04]} Be7 {[%emt 0:00:22]} 8. Nf3 {[%emt 0:00:04]} Nc6 {[%emt 0:00:20]} 9. O-O {[%emt 0:05:35]} O-O {[%emt 0:00:54]} 10. a3 {[%emt 0:04:09]} a6 {[%emt 0:05:39]} 11. Re1 {[%emt 0:14:48]} b5 {[%emt 0:03:23]} 12. Bd3 {[%emt 0:06:01]} Bb7 {[%emt 0:04:19]} 13. Rc1 {[%emt 0:02:31]} h6 {[%emt 0:19:34]} 14. Be3 {[%emt 0:07:08]} b4 {[%emt 0:12:44]} 15. axb4 {[%emt 0:02:31]} Nxb4 {[%emt 0:00:34]} 16. Bb1 {[%emt 0:00:06]} Qa5 {[%emt 0:39:15]} 17. Ne5 {[%emt 0:02:51]} Rfd8 {[%emt 0:00:00]} 18. Qe2 {[%emt 0:07:40]} Nbd5 {[%emt 0:00:00]} 19. Qf3 {[%emt 0:19:57]} Rab8 {[%emt 0:00:00]} 20. Qh3 {[%emt 0:03:12]} Nxe3 {[%emt 0:00:00]} 21. fxe3 {[%emt 0:02:03]} Qb6 {[%emt 0:00:00]} 22. Re2 {[%emt 0:00:54]} Rbc8 {[%emt 0:00:00]} 23. Rf1 {[%emt 0:00:44]} Rc7 {[%emt 0:00:00]} 24. Ref2 {[%emt 0:00:42]} a5 {[%emt 0:00:00]} 25. Qg3 {[%emt 0:01:53]} Ba6 {[%emt 0:00:00]} 26. Bd3 {[%emt 0:00:15]} Bxd3 {[%emt 0:00:00]} 27. Nxd3 {[%emt 0:00:02]} Bd6 {[%emt 0:00:21]} 28. Ne5 {[%emt 0:00:40]} Bxe5 {[%emt 0:00:48]} 29. dxe5 {[%emt 0:02:34]} Nd5 {[%emt 0:00:07]} 30. Nd1 {[%emt 0:01:02]} Rcd7 {[%emt 0:01:04]} 31. h4 {[%emt 0:02:49]} Qc7 {[%emt 0:01:45]} 32. Rf3 {[%emt 0:01:48]} Qc2 {[%emt 0:01:15]} 33. Nf2 {[%emt 0:01:30]} Qg6 {[%emt 0:01:06]} 34. Qxg6 {[%emt 0:03:24]} fxg6 {[%emt 0:00:02]} 35. Ne4 {[%emt 0:00:08]} Nb4 {[%emt 0:01:04]} 36. Nc5 {[%emt 0:00:45]} Re7 {[%emt 0:00:10]} 37. Ra1 {[%emt 0:00:20]} Nc6 {[%emt 0:01:17]} 38. Rf4 {[%emt 0:01:41]} Rb8 {[%emt 0:00:28]} 39. b3 {[%emt 0:00:54]} Rb5 {[%emt 0:00:30]} 40. Rc1 {[%emt 0:00:18]} Nxe5 {[%emt 0:01:06]} 41. Re4 {[%emt 0:00:06]} Nd7 {[%emt 0:00:50]} 42. Nxe6 {[%emt 0:00:18]} Rb8 {[%emt 0:00:13]} 43. Nc5 {[%emt 0:01:37]} Rxe4 {[%emt 0:00:24]} 44. Nxe4 {[%emt 0:00:02]} Rxb3 {[%emt 0:00:28]} 45. Kf2 {[%emt 0:00:45]} Ne5 {[%emt 0:00:36]} 46. Rc8+ {[%emt 0:00:38]} Kh7 {[%emt 0:00:29]} 47. Rc7 {[%emt 0:00:31]} Kg8 {[%emt 0:00:33]} 48. Rc8+ {[%emt 0:00:31]} Kf7 {[%emt 0:00:37]} 49. Rc7+ {[%emt 0:00:06]} Kf8 {[%emt 0:00:33]} 50. Nc5 {[%emt 0:00:30]} Nd3+ {[%emt 0:00:36]} 51. Nxd3 {[%emt 0:00:06]} Rxd3 {[%emt 0:00:02]} 52. Ra7 {[%emt 0:00:12]} Ra3 {[%emt 0:00:23]} 53. Kf3 {[%emt 0:00:16]} Ra1 {[%emt 0:00:24]} 54. g3 {[%emt 0:00:42]} a4 {[%emt 0:00:18]} 55. Kf4 {[%emt 0:00:08]} a3 {[%emt 0:00:31]} 56. e4 {[%emt 0:00:18]} a2 {[%emt 0:00:33]} 57. Ke5 {[%emt 0:00:05]} Kg8 {[%emt 0:00:13]} 58. g4 {[%emt 0:00:48]} Kh7 {[%emt 0:01:19]} 59. g5 {[%emt 0:00:39]} Rh1 {[%emt 0:00:46]} 60. Rxa2 {[%emt 0:00:07]} Rxh4 {[%emt 0:00:03]} 61. gxh6 {[%emt 0:01:02]} Kxh6 {[%emt 0:00:09]} 62. Kd5 {[%emt 0:00:07]} Rh1 {[%emt 0:00:20]} 63. e5 {[%emt 0:00:10]} Rd1+ {[%emt 0:00:30]} 64. Ke6 {[%emt 0:00:11]} g5 {[%emt 0:00:39]} 65. Ra6 {[%emt 0:01:30]} Kg6 {[%emt 0:00:44]} 66. Ke7+ {[%emt 0:00:13]} Kf5 {[%emt 0:00:17]} 67. e6 {[%emt 0:00:15]} Re1 {[%emt 0:00:56]} 68. Kf7 {[%emt 0:00:43]} g4 {[%emt 0:00:20]} 69. e7 {[%emt 0:00:36]} g3 {[%emt 0:00:33]} 70. Ra1 {[%emt 0:01:17]} Rxe7+ {[%emt 0:00:51]} 71. Kxe7 {[%emt 0:00:05]} Kf4 {[%emt 0:00:08]} 72. Kf7 {[%emt 0:00:21]} Kf3 {[%emt 0:00:14]} 73. Kxg7 {[%emt 0:00:06]} g2 {[%emt 0:00:05]} 74. Rg1 {[%emt 0:00:08]} Kf2 {[%emt 0:00:04]} 75. Rxg2+ {[%emt 0:00:05]} Kxg2 {[%emt 0:00:35]} 1/2-1/2

[Event "10th Floripa Open 2024"]
[Site "Florianopolis"]
[Date "2024.01.24"]
[Round "5.7"]
[White "Rodrigues, Edgar"]
[Black "Fier, Alexandr"]
[Result "0-1"]
[ECO "B94"]
[WhiteElo "2233"]
[BlackElo "2549"]
[Annotator "TA"]
[PlyCount "70"]
[EventDate "2024.01.10"]
[EventType "swiss"]
[EventCountry "BRA"]
[SourceTitle "playchess.com"]
[Source "ChessBase"]
[SourceQuality "1"]
[TimeControl "5400+30"]

{[%evp 12,70,11,10,24,0,0,0,0,0,0,-43,-20,-30,-41,-126,-154,-173,-187,-238,-137,-281,-291,-399,-451,-421,-14,-35,-8,-15,0,0,0,0,0,0,0,-670,-774,-656,-64,-65,-14,-2352,-2011,-1464,-970,-2327,-2175,-1931,-1754,-2016,-1704,-29995,-29996,-29996,-29997,-29997,-29998,-29998,-29999]} 1. e4 {[%emt 0:00:04]} c5 {[%emt 0:00:03]} 2. Nf3 {[%emt 0:00:06]} d6 {[%emt 0:00:03]} 3. d4 {[%emt 0:00:07]} cxd4 {[%emt 0:00:03]} 4. Nxd4 {[%emt 0:00:08]} Nf6 {[%emt 0:00:02]} 5. Nc3 {[%emt 0:00:09]} a6 {[%emt 0:00:03]} 6. Bg5 {[%emt 0:01:04]} Nbd7 {[%emt 0:00:05]} 7. Qd2 {[%emt 0:00:36]} h6 {[%emt 0:00:50]} 8. Be3 {[%emt 0:01:25]} e6 {[%emt 0:00:06]} 9. f3 {[%emt 0:00:27]} b5 {[%emt 0:00:12] The position is equal.} 10. O-O-O {[%emt 0:01:52]} Bb7 {[%emt 0:00:40]} 11. g4 {[%emt 0:09:33]} b4 {[%emt 0:00:54]} 12. Nce2 {[%emt 0:00:45]} d5 {[%emt 0:00:06]} 13. g5 {[%emt 0:05:28]} (13. exd5 $15 Nxd5 14. Bf2) 13... hxg5 $17 {[%emt 0:00:35]} 14. exd5 {[%emt 0:07:08]} Bxd5 {[%emt 0:01:44]} (14... Nxd5 15. Bxg5 Qb6 16. h4 $15) 15. Bxg5 {[%emt 0:01:22]} Bxa2 {[%emt 0:08:55]} (15... Qa5 $19 16. a3 e5) 16. Nf4 {[%emt 0:11:13]} (16. Bg2 $17) 16... Qa5 $19 {[%emt 0:04:48]} 17. Qg2 {[%emt 0:03:40]} Rc8 {[%emt 0:02:51]} 18. b3 {[%emt 0:06:20]} Bc5 $2 {[%emt 0:07:18]} ({Black should try} 18... Be7 $19 19. Nfxe6 fxe6) 19. Nfxe6 $11 {[%emt 0:02:30]} fxe6 {[%emt 0:06:24]} 20. Bxf6 {[%emt 0:00:32] Intending Qg6+ and mate.} Qa3+ {[%emt 0:09:26]} (20... Nxf6 $2 21. Qg6+ (21. Qxg7 $2 Qa3+ 22. Kd2 Qb2 $19) 21... Kd7 22. Qxg7+ Be7 23. Nf5+ Kc7 24. Nxe7 $18 (24. Qxe7+ Kb8 $18)) 21. Kd2 {[%emt 0:00:10] White wants to mate with Qg6+.} Nxf6 {[%emt 0:00:28]} 22. Qg6+ $1 {[%emt 0:01:38]} Kd7 {[%emt 0:02:10]} 23. Qf7+ {[%emt 0:07:24]} Kd6 {[%emt 0:01:20]} 24. Nxe6 {[%emt 0:05:34][%mdl 8192] [#]} (24. Qxe6+ $11 Kc7 25. Bxa6 Bxd4 26. Qc4+ Kb6 (26... Kb8 27. Qb5+ Kc7 28. Qc4+ Kb8 29. Qb5+ Kc7 30. Qc4+ $11) 27. Qb5+ Kc7 28. Qc4+ Kb8 29. Qb5+ Kc7 30. Qc4+) 24... Bxb3 $1 $19 {[%emt 0:05:04]} 25. cxb3 {[%emt 0:03:36] [#]} Qxb3 $2 $40 {[%emt 0:00:03][%mdl 128] Black is up to no good.} ({Black should play} 25... Rhe8 $1 $19 26. Ke1+ (26. Nxg7 $2 Qb2+ 27. Kd3 Qc3#) 26... Kc6 (26... Nd5 27. Qf4+ Kxe6 28. Bh3+ Ke7 29. Rxd5 $19)) 26. Ke1+ $15 {[%emt 0:05:01]} Nd5 {[%emt 0:49:17] Really sharp!} 27. Rd3 {[%emt 0:12:10][%mdl 8192]} (27. Be2 $11 Rhe8 28. Nf4) 27... Qb1+ $19 {[%emt 0:00:00]} 28. Ke2 {[%emt 0:00:26]} Rhe8 {[%emt 0:00:00]} 29. Bh3 {[%emt 0:00:34]} Qc2+ {[%emt 0:00:00]} 30. Rd2 {[%emt 0:00:25]} Qc4+ {[%emt 0:00:00]} 31. Kd1 {[%emt 0:01:00] [#]} Bd4 $1 {[%emt 0:00:00][%mdl 512] ( -> ...Qb3+)} 32. Rxd4 {[%emt 0:05:08]} (32. Qf4+ Nxf4) 32... Qc1+ {[%emt 0:00:00] Black mates.} 33. Ke2 {[%emt 0:00:06]} Rc2+ {[%emt 0:00:00]} (33... Qxh1 34. Rxd5+ (34. Qxg7 {gets mated.} Rc2+ 35. Rd2 Rxe6+ 36. Kd3 Rxd2+ 37. Kxd2 Qe1+ 38. Kc2 Qf2+ 39. Kb3 Re3+ 40. Kc4 Qe2+ 41. Kd4 Qd3#) 34... Kc6 (34... Kxd5 35. Qd7+ Ke5 36. Qd4#) 35. Qd7+ Kb6 36. Qd6+ (36. Qxg7 $2 {is the wrong capture.} Rc2+ 37. Ke3 Rc3+ 38. Kf4 Qxf3+ 39. Ke5 Qe2+ 40. Kf6 Rf3+ $19) 36... Ka7 37. Rd1 (37. Qxb4 Rc2+ 38. Ke3 Qc1+ 39. Rd2 Qe1+ 40. Kd3 Rxd2+ 41. Qxd2 Rxe6 $11) 37... Rxe6+ (37... Rc2+ 38. Rd2 $16) 38. Bxe6 $16) 34. Kd3 {[%emt 0:00:11]} Rd2+ {[%emt 0:00:00]} 35. Ke4 {[%emt 0:00:49]} Qc2+ {[%emt 0:00:00] Weighted Error Value: White=1.24/Black=1.02.  Loses game:     	White=2     	---        Missed win:     	---       	Black=1      Mistake:       	White=2     	Black=1      Inaccurate:     	White=2     	Black=1      OK:         	White=8     	Black=6      Best:        	---       	Black=5      Strong:       	White=1     	---        Brilliant:      	---       	Black=1} 0-1

[Event "10th Floripa Open 2024"]
[Site "Florianopolis"]
[Date "2024.01.24"]
[Round "5.8"]
[White "Salinas Herrera, Pablo"]
[Black "Coppola, Claudio"]
[Result "1/2-1/2"]
[ECO "D00"]
[WhiteElo "2477"]
[BlackElo "2250"]
[Annotator "ChessBase"]
[PlyCount "259"]
[EventDate "2024.01.10"]
[EventType "swiss"]
[EventCountry "BRA"]
[SourceTitle "playchess.com"]
[Source "ChessBase"]
[SourceQuality "1"]
[TimeControl "5400+30"]

1. d4 {[%emt 0:05:22]} Nf6 {[%emt 0:02:27]} 2. Nc3 {[%emt 0:00:08]} d5 {[%emt 0:00:27]} 3. Bf4 {[%emt 0:00:08]} c6 {[%emt 0:02:21]} 4. e3 {[%emt 0:02:09]} Bf5 {[%emt 0:00:04]} 5. Nf3 {[%emt 0:02:00]} e6 {[%emt 0:01:06]} 6. Ne5 {[%emt 0:05:30]} Bb4 {[%emt 0:01:56]} 7. g4 {[%emt 0:07:05]} Bg6 {[%emt 0:03:12]} 8. f3 {[%emt 0:03:10]} Qa5 {[%emt 0:05:26]} 9. Qd2 {[%emt 0:03:03]} Nfd7 {[%emt 0:01:21]} 10. a3 {[%emt 0:24:18]} Nxe5 {[%emt 0:02:04]} 11. Bxe5 {[%emt 0:00:37]} f6 {[%emt 0:06:43]} 12. Bf4 {[%emt 0:00:19]} Nd7 {[%emt 0:01:43]} 13. h4 {[%emt 0:03:21]} e5 {[%emt 0:03:43]} 14. Bg3 {[%emt 0:00:04]} O-O {[%emt 0:11:37]} 15. h5 {[%emt 0:01:15]} Bf7 {[%emt 0:00:55]} 16. Bd3 {[%emt 0:12:18]} Rfe8 {[%emt 0:03:17]} 17. Kf2 {[%emt 0:08:50]} Bd6 {[%emt 0:03:44]} 18. Ne4 {[%emt 0:01:35]} Qxd2+ {[%emt 0:00:39]} 19. Nxd2 {[%emt 0:00:05]} c5 {[%emt 0:03:54]} 20. Bb5 {[%emt 0:02:31]} Rad8 {[%emt 0:01:00]} 21. Nb3 {[%emt 0:01:17]} cxd4 {[%emt 0:02:14]} 22. exd4 {[%emt 0:00:48]} a6 {[%emt 0:00:32]} 23. Be2 {[%emt 0:00:33]} Nb6 {[%emt 0:06:42]} 24. Na5 {[%emt 0:00:34]} Re7 {[%emt 0:02:21]} 25. Rhd1 {[%emt 0:03:51]} Na4 {[%emt 0:02:37]} 26. Rab1 {[%emt 0:01:06]} Rc7 {[%emt 0:04:27]} 27. Rd2 {[%emt 0:02:34]} b5 {[%emt 0:06:47]} 28. c3 {[%emt 0:01:07]} Kf8 {[%emt 0:02:17]} 29. Bd1 {[%emt 0:01:07]} Ke7 {[%emt 0:02:52]} 30. Bc2 {[%emt 0:00:17]} g6 {[%emt 0:01:33]} 31. dxe5 {[%emt 0:00:49]} Bxe5 {[%emt 0:02:06]} 32. Re2 {[%emt 0:00:56]} Kf8 {[%emt 0:02:32]} 33. Bxe5 {[%emt 0:00:38]} fxe5 {[%emt 0:00:02]} 34. Rxe5 {[%emt 0:00:27]} d4 {[%emt 0:00:17]} 35. Bxa4 {[%emt 0:08:08]} bxa4 {[%emt 0:00:03]} 36. Rd1 {[%emt 0:00:00]} Rb8 {[%emt 0:00:45]} 37. Rxd4 {[%emt 0:00:00]} Rxb2+ {[%emt 0:00:09]} 38. Kg3 {[%emt 0:00:00]} gxh5 {[%emt 0:00:26]} 39. gxh5 {[%emt 0:00:00]} Rb5 {[%emt 0:01:14]} 40. Rxb5 {[%emt 0:00:00]} axb5 {[%emt 0:00:01]} 41. Rb4 {[%emt 0:00:00]} Rxc3 {[%emt 0:00:50]} 42. Rxb5 {[%emt 0:00:00]} Rxa3 {[%emt 0:00:43]} 43. Nc6 {[%emt 0:00:00]} Rb3 {[%emt 0:02:41]} 44. Ra5 {[%emt 0:00:00]} a3 {[%emt 0:02:31]} 45. h6 {[%emt 0:00:00]} Rb6 {[%emt 0:08:39]} 46. Ra8+ {[%emt 0:00:00]} Be8 {[%emt 0:00:00]} 47. Nd4 {[%emt 0:00:00]} Rxh6 {[%emt 0:00:00]} 48. Rxa3 {[%emt 0:00:00]} Rd6 {[%emt 0:00:00]} 49. Nf5 {[%emt 0:00:00]} Rd5 {[%emt 0:00:00]} 50. Ne3 {[%emt 0:00:00]} Rc5 {[%emt 0:00:00]} 51. f4 {[%emt 0:00:00]} Bd7 {[%emt 0:00:00]} 52. Ra7 {[%emt 0:00:00]} Ke8 {[%emt 0:00:00]} 53. Ra8+ {[%emt 0:00:00]} Rc8 {[%emt 0:00:19]} 54. Ra5 {[%emt 0:00:00]} Rc3 {[%emt 0:00:39]} 55. Re5+ {[%emt 0:00:00]} Kf7 {[%emt 0:00:26]} 56. Kh4 {[%emt 0:00:00]} Rc1 {[%emt 0:00:20]} 57. f5 {[%emt 0:00:21]} Rb1 {[%emt 0:02:18]} 58. Rd5 {[%emt 0:01:25]} Bc6 {[%emt 0:00:40]} 59. Rd6 {[%emt 0:00:19]} Be4 {[%emt 0:00:59]} 60. Kg5 {[%emt 0:00:15]} Bxf5 {[%emt 0:00:27]} 61. Kxf5 {[%emt 0:00:14]} Ke7 {[%emt 0:00:42]} 62. Rh6 {[%emt 0:00:05]} Rb5+ {[%emt 0:00:26]} 63. Ke4 {[%emt 0:00:04]} Kd7 {[%emt 0:00:50]} 64. Nc4 {[%emt 0:00:11]} Rb1 {[%emt 0:00:19]} 65. Ne5+ {[%emt 0:00:08]} Ke7 {[%emt 0:00:36]} 66. Nf3 {[%emt 0:00:33]} Rb4+ {[%emt 0:00:21]} 67. Nd4 {[%emt 0:00:06]} Rb1 {[%emt 0:00:07]} 68. Kd5 {[%emt 0:00:06]} Ra1 {[%emt 0:00:45]} 69. Nc6+ {[%emt 0:00:18]} Kf7 {[%emt 0:00:12]} 70. Ne5+ {[%emt 0:00:13]} Kg7 {[%emt 0:00:23]} 71. Rb6 {[%emt 0:00:14]} h5 {[%emt 0:00:32]} 72. Ke6 {[%emt 0:00:03]} Ra7 {[%emt 0:01:12]} 73. Rb1 {[%emt 0:01:46]} Ra6+ {[%emt 0:00:23]} 74. Kf5 {[%emt 0:00:04]} h4 {[%emt 0:00:28]} 75. Rb7+ {[%emt 0:00:09]} Kg8 {[%emt 0:00:37]} 76. Nd7 {[%emt 0:00:20]} Ra1 {[%emt 0:00:39]} 77. Nf6+ {[%emt 0:03:20]} Kf8 {[%emt 0:00:09]} 78. Ng4 {[%emt 0:01:34]} h3 {[%emt 0:00:40]} 79. Rh7 {[%emt 0:00:06]} h2 {[%emt 0:00:33]} 80. Nxh2 {[%emt 0:00:05]} Ra5+ {[%emt 0:00:23]} 81. Kg4 {[%emt 0:00:10]} Ra4+ {[%emt 0:00:09]} 82. Kh5 {[%emt 0:00:13]} Ra1 {[%emt 0:00:39]} 83. Nf3 {[%emt 0:00:06]} Rh1+ {[%emt 0:00:20]} 84. Nh4 {[%emt 0:00:03]} Rg1 {[%emt 0:00:25]} 85. Ra7 {[%emt 0:00:10]} Ke8 {[%emt 0:00:19]} 86. Nf3 {[%emt 0:00:16]} Rg3 {[%emt 0:00:36]} 87. Ng5 {[%emt 0:00:05]} Rg1 {[%emt 0:00:35]} 88. Rg7 {[%emt 0:00:04]} Rf1 {[%emt 0:00:50]} 89. Kg6 {[%emt 0:00:09]} Ra1 {[%emt 0:00:54]} 90. Kf6 {[%emt 0:00:08]} Rf1+ {[%emt 0:00:08]} 91. Ke5 {[%emt 0:00:02]} Kd8 {[%emt 0:00:43]} 92. Ne4 {[%emt 0:00:06]} Ra1 {[%emt 0:00:31]} 93. Rf7 {[%emt 0:00:52]} Rb1 {[%emt 0:00:35]} 94. Nc3 {[%emt 0:01:53]} Re1+ {[%emt 0:00:26]} 95. Kd6 {[%emt 0:00:06]} Ke8 {[%emt 0:00:21]} 96. Rf4 {[%emt 0:00:27]} Ra1 {[%emt 0:00:27]} 97. Nd5 {[%emt 0:00:57]} Ra6+ {[%emt 0:00:26]} 98. Ke5 {[%emt 0:13:44]} Ra1 {[%emt 0:00:26]} 99. Rf3 {[%emt 0:00:00]} Kd7 {[%emt 0:00:49]} 100. Rf7+ {[%emt 0:00:00]} Ke8 {[%emt 0:00:33]} 101. Rb7 {[%emt 0:00:00]} Kf8 {[%emt 0:00:33]} 102. Nf4 {[%emt 0:00:00]} Ke8 {[%emt 0:00:29]} 103. Rc7 {[%emt 0:00:00]} Re1+ {[%emt 0:00:28]} 104. Kd6 {[%emt 0:00:00]} Rd1+ {[%emt 0:00:38]} 105. Nd5 {[%emt 0:00:00]} Kf8 {[%emt 0:00:21]} 106. Rd7 {[%emt 0:00:00]} Ra1 {[%emt 0:00:27]} 107. Rb7 {[%emt 0:00:00]} Rc1 {[%emt 0:00:37]} 108. Nf4 {[%emt 0:00:00]} Ke8 {[%emt 0:00:41]} 109. Rh7 {[%emt 0:00:00]} Ra1 {[%emt 0:00:21]} 110. Re7+ {[%emt 0:00:00]} Kf8 {[%emt 0:00:29]} 111. Ne6+ {[%emt 0:00:00]} Kg8 {[%emt 0:00:04]} 112. Rg7+ {[%emt 0:00:00]} Kh8 {[%emt 0:00:05]} 113. Rg4 {[%emt 0:00:00]} Kh7 {[%emt 0:00:42]} 114. Ke7 {[%emt 0:00:00]} Kh6 {[%emt 0:00:58]} 115. Kf6 {[%emt 0:00:00]} Kh5 {[%emt 0:00:24]} 116. Rf4 {[%emt 0:00:00]} Ra6 {[%emt 0:00:35]} 117. Rb4 {[%emt 0:00:00]} Rc6 {[%emt 0:00:24]} 118. Kf5 {[%emt 0:00:00]} Ra6 {[%emt 0:01:37]} 119. Rd4 {[%emt 0:00:00]} Ra5+ {[%emt 0:00:00]} 120. Kf6 {[%emt 0:00:00]} Ra6 {[%emt 0:00:00]} 121. Rb4 {[%emt 0:00:00]} Rc6 {[%emt 0:00:00]} 122. Ra4 {[%emt 0:00:00]} Rb6 {[%emt 0:00:20]} 123. Rc4 {[%emt 0:00:00]} Ra6 {[%emt 0:00:18]} 124. Kf5 {[%emt 0:00:00]} Ra5+ {[%emt 0:00:24]} 125. Nc5 {[%emt 0:00:00]} Rb5 {[%emt 0:00:44]} 126. Rc2 {[%emt 0:00:00]} Kh4 {[%emt 0:00:23]} 127. Rc3 {[%emt 0:00:00]} Ra5 {[%emt 0:00:47]} 128. Kf4 {[%emt 0:00:00]} Ra8 {[%emt 0:00:32]} 129. Nd7 {[%emt 0:00:00]} Ra4+ {[%emt 0:00:12]} 130. Kf5 {[%emt 0:00:00]} 1/2-1/2

[Event "10th Floripa Open 2024"]
[Site "Florianopolis"]
[Date "2024.01.24"]
[Round "5.9"]
[White "Terao, Juliana Sayumi"]
[Black "Galego, Luis"]
[Result "0-1"]
[ECO "B07"]
[WhiteElo "2198"]
[BlackElo "2468"]
[Annotator "TA"]
[PlyCount "90"]
[EventDate "2024.01.10"]
[EventType "swiss"]
[EventCountry "BRA"]
[SourceTitle "playchess.com"]
[Source "ChessBase"]
[SourceQuality "1"]
[TimeControl "5400+30"]

{[%evp 9,90,43,34,35,30,34,35,40,45,37,39,35,40,0,20,0,0,0,0,-14,-3,-18,0,-12,101,-535,-518,-591,-5,-10,-9,-15,0,-8,0,-18,18,20,20,20,16,0,3,-8,-7,-7,-2,-124,-122,-124,-129,-136,-132,-140,-100,-140,-127,-128,-105,-115,-99,-257,-244,-348,-340,-367,-365,-766,-387,-693,-756,-768,-704,-652,-411,-335,-337,-712,-663,-1036,-675,-1056,-1031]} 1. e4 {[%emt 0:00:05]} d6 {[%emt 0:00:35]} 2. d4 {[%emt 0:00:10]} Nf6 {[%emt 0:00:06]} 3. Nc3 {[%emt 0:00:15]} c6 {[%emt 0:00:02]} 4. Bd3 {[%emt 0:02:40]} e5 {[%emt 0:00:07]} 5. Nf3 {[%emt 0:00:40]} Bg4 {[%emt 0:03:51]} 6. dxe5 {[%emt 0:02:30]} dxe5 {[%emt 0:00:12]} 7. h3 {[%emt 0:00:32]} Bxf3 {[%emt 0:00:07]} 8. Qxf3 {[%emt 0:00:10] White is slightly better.} Nbd7 {[%emt 0:00:08]} 9. O-O {[%emt 0:07:38]} Nc5 {[%emt 0:00:09]} 10. Rd1 {[%emt 0:01:53]} Qc7 {[%emt 0:00:12]} 11. b3 {[%emt 0:07:14]} Be7 {[%emt 0:06:07]} 12. Bb2 {[%emt 0:04:32]} O-O {[%emt 0:00:54]} 13. Ne2 {[%emt 0:01:11]} g6 {[%emt 0:03:47]} 14. a4 {[%emt 0:07:57]} Rad8 {[%emt 0:05:04]} 15. Ng3 {[%emt 0:02:51]} Nxd3 {[%emt 0:05:39]} 16. Rxd3 {[%emt 0:00:26]} Rd6 {[%emt 1:11:30] [#]} (16... a6 $11 {remains equal.}) 17. Rd4 $2 {[%mdl 8192]} Rxd4 $19 {[%emt 0:00:00]} 18. Qe3 {[%emt 0:58:46] [#]} Rd3 $2 19. Qxd3 $11 {[%emt 0:00:00]} Rd8 {[%emt 0:00:00]} 20. Qc4 {[%emt 0:00:00]} Ne8 {[%emt 0:00:00][%cal Bf6e8,Be8g7,Bg7e6][%mdl 32]} 21. Nf1 {[%emt 0:00:00]} (21. Qc3 $5) 21... Ng7 {[%emt 0:00:00]} 22. Ne3 {[%emt 0:00:00]} h5 {[%emt 0:00:00] [#] Prevents Ng4.} 23. Nd5 $1 {[%emt 0:00:00]} Qd7 {[%emt 0:00:00]} (23... Qd6 24. Nxe7+) 24. Nxe7+ {[%emt 0:00:00]} Qxe7 {[%emt 0:00:00]} 25. a5 {[%emt 0:00:00]} Qd6 {[%emt 0:00:00]} 26. Re1 {[%emt 0:00:00]} Ne6 {[%emt 0:00:00]} 27. Bc1 {[%emt 0:00:00]} Qd4 {[%emt 0:00:00]} 28. Qe2 {[%emt 0:00:00]} (28. Be3 $1 $11 Qxc4 29. bxc4) 28... Qb4 {[%emt 0:00:00]} 29. Be3 {[%emt 0:00:00]} Qxa5 {[%emt 0:00:00] Black is more active.} 30. Rd1 {[%emt 0:00:00]} Rxd1+ {[%emt 0:00:00]} 31. Qxd1 $17 {[%emt 0:00:00][%mdl 4096] Endgame. KQB-KQN} Qc7 {[%emt 0:00:00]} 32. h4 {[%emt 0:00:00]} b6 {[%emt 0:00:00]} 33. g3 {[%emt 0:00:00]} a5 {[%emt 0:00:00]} 34. Qd3 {[%emt 0:01:28]} b5 {[%emt 0:00:00]} 35. c4 $2 {[%emt 0:00:28]} (35. Kg2 $17) 35... b4 {[%emt 0:00:00]} 36. c5 {[%emt 0:00:21]} (36. Qd2 {keeps fighting.}) 36... Qd8 $19 {[%emt 0:00:00]} 37. Qc2 {[%emt 0:01:16]} Nd4 {[%emt 0:00:00]} 38. Qa2 {[%emt 0:01:32]} (38. Bxd4 Qxd4 39. Kf1) 38... Nb5 {[%emt 0:00:00]} 39. Bg5 $2 {[%emt 0:01:38]} (39. Qc2) 39... Qd1+ {[%emt 0:00:00]} 40. Kg2 {[%emt 0:00:35]} Na3 {[%emt 0:00:00] Strongly threatening ...a4.} 41. Qb2 {[%emt 0:00:23]} Qd4 {[%emt 0:00:00]} 42. Qe2 {[%emt 0:01:42]} Nb5 $1 {[%emt 0:00:00]} ({Less strong is} 42... Qxc5 43. Qa6 $15) 43. f3 $2 {[%emt 0:01:43]} (43. Bf6) 43... Qxc5 {[%emt 0:00:00] White must now prevent ...Nd4. Black is clearly winning.} 44. Kh3 {[%emt 0:00:13]} Qd6 {[%emt 0:00:00]} 45. Qa2 {[%emt 0:00:21]} Qd1 {[%emt 0:00:00] Weighted Error Value: White=0.80/Black=0.56.  Loses game:     	White=1     	---        Missed win:     	---       	Black=1      Mistake:       	White=6     	Black=1      Inaccurate:     	White=3     	Black=2      OK:         	White=8     	Black=13} 0-1